bitfinex/quotes_BTCUSD_20250225
["timestamp","ask_amount","ask_price","bid_price","bid_amount"]
[1740453293240,0.00669435,92557.0,92545.0,0.11090965]
[1740453294618,0.00669435,92557.0,92545.0,0.07836336]
[1740453294797,0.00669435,92557.0,92533.0,0.31837059]
[1740453294999,0.00669435,92557.0,92533.0,0.02]
[1740453295254,0.00669435,92557.0,92532.0,0.0008483]
[1740453295460,0.08642529,92548.0,92532.0,0.0008483]
[1740453295661,0.08642529,92548.0,92503.0,0.29837059]
[1740453295662,0.01611038,92530.0,92507.0,0.02]
[1740453295812,0.01611038,92530.0,92509.0,0.02]
[1740453296985,0.00828953,92533.0,92509.0,0.02]
[1740453297586,0.00828953,92533.0,92516.0,0.0831]
[1740453299347,0.00828953,92533.0,92511.0,0.0785]
[1740453299549,0.15,92531.0,92505.0,0.079]
[1740453300196,0.15,92531.0,92518.0,0.0009187]
[1740453301348,0.08642529,92529.0,92518.0,0.0009187]
[1740453301644,0.2293,92527.0,92518.0,0.0009187]
[1740453302005,0.15,92527.0,92518.0,0.0009187]
[1740453302610,0.00043108,92527.0,92518.0,0.0009187]
[1740453303019,0.0789,92516.0,92470.0,0.29837059]
[1740453303222,0.2715,92496.0,92466.0,0.0821]
[1740453303429,0.18658999,92495.0,92462.0,0.0788]
[1740453303653,0.19093399,92495.0,92463.0,1e-08]
[1740453304077,0.04093399,92495.0,92463.0,1e-08]
[1740453304301,0.3265,92505.0,92463.0,0.00151403]
[1740453304430,0.00043081,92495.0,92465.0,0.02]
[1740453304808,0.00043081,92495.0,92471.0,0.1268]
[1740453305179,0.00828888,92472.0,92471.0,0.1268]
[1740453305379,0.00043081,92495.0,92472.0,0.02]
[1740453306140,0.00043081,92495.0,92477.0,0.1032]
[1740453306419,0.00043081,92495.0,92486.0,0.02]
[1740453306725,0.00043081,92495.0,92478.0,0.29988429]
[1740453306726,0.00043081,92495.0,92487.0,0.14711358]
[1740453307170,0.00043081,92495.0,92487.0,0.14398897]
[1740453307347,0.00805524,92492.0,92487.0,0.0794]
[1740453307565,0.00805524,92492.0,92480.0,0.06813]
[1740453307777,0.00805524,92492.0,92478.0,0.29837059]
[1740453311922,0.00805524,92492.0,92474.0,0.0781]
[1740453312234,0.00805524,92492.0,92467.0,0.0474]
[1740453312235,0.00805524,92492.0,92469.0,0.02]
[1740453313332,0.00805524,92492.0,92467.0,0.0474]
[1740453313534,0.00805524,92492.0,92469.0,0.02]
[1740453313952,0.00855861,92491.0,92458.0,0.0774]
[1740453314376,0.0491,92490.0,92458.0,0.06612742]
[1740453314535,0.0491,92490.0,92456.0,0.0008486]
[1740453314742,0.31782529,92479.0,92478.0,0.000849]
[1740453314939,0.67610782,92479.0,92478.0,0.000849]
[1740453315159,0.72410782,92479.0,92478.0,0.000849]
[1740453317137,0.15,92478.0,92456.0,0.00024767]
[1740453317879,0.15,92476.0,92456.0,0.00024767]
[1740453318129,0.15,92474.0,92439.0,0.0791]
[1740453318335,0.15,92474.0,92439.0,0.0741]
[1740453319446,0.08642529,92469.0,92423.0,0.02]
[1740453319575,0.15,92467.0,92423.0,0.02]
[1740453319778,0.05629253,92466.0,92423.0,0.02]
[1740453320932,0.05672307,92466.0,92423.0,0.02]
[1740453321095,0.05672307,92466.0,92429.0,0.02]
[1740453321307,0.00817356,92430.0,92429.0,0.0964]
[1740453322610,0.00860384,92430.0,92429.0,0.0964]
[1740453323370,0.01060384,92430.0,92429.0,0.0964]
[1740453323776,0.00860384,92430.0,92429.0,0.0964]
[1740453323996,0.002,92430.0,92429.0,0.0964]
[1740453324388,0.01020252,92430.0,92429.0,0.0964]
[1740453324594,0.00046835,92456.0,92429.0,0.0964]
[1740453324708,0.00046835,92456.0,92429.0,0.09652943]
[1740453324913,0.00046835,92456.0,92430.0,0.00980439]
[1740453325173,0.00046835,92456.0,92429.0,0.09652943]
[1740453325376,0.00046835,92456.0,92429.0,0.07652943]
[1740453326090,0.00046835,92456.0,92429.0,0.09652943]
[1740453326245,0.001,92430.0,92429.0,0.07652943]
[1740453326452,0.001,92430.0,92429.0,0.07752943]
[1740453326683,0.001,92430.0,92429.0,0.07652943]
[1740453327033,0.00809989,92434.0,92429.0,0.00012943]
[1740453327237,0.00117551,92429.0,92424.0,0.31837059]
[1740453327532,0.00117551,92429.0,92424.0,0.31850012]
[1740453328661,0.00117551,92429.0,92428.0,0.02]
[1740453329442,0.00217551,92429.0,92426.0,0.02]
[1740453329849,0.00117551,92429.0,92428.0,0.001]
[1740453330053,0.00217551,92429.0,92426.0,0.02]
[1740453330978,0.00117551,92429.0,92426.0,0.02]
[1740453331985,0.00117551,92429.0,92428.0,0.02]
[1740453332158,0.00217551,92429.0,92428.0,0.09901443]
[1740453332516,0.00217551,92429.0,92428.0,0.09801443]
[1740453332715,0.00217551,92429.0,92428.0,0.0965]
[1740453332716,0.00117551,92429.0,92428.0,0.0965]
[1740453333098,0.00117551,92429.0,92428.0,0.0975]
[1740453333421,0.00822696,92439.0,92429.0,0.02]
[1740453333634,0.00822696,92439.0,92435.0,0.02]
[1740453333948,0.00822696,92439.0,92435.0,0.01882449]
[1740453334215,0.00822696,92439.0,92429.0,0.01882449]
[1740453334343,0.00822696,92439.0,92435.0,0.01882449]
[1740453335560,0.01022696,92439.0,92435.0,0.01882449]
[1740453335782,0.01022696,92439.0,92435.0,0.01428277]
[1740453336662,0.01322696,92439.0,92436.0,0.29837059]
[1740453337102,0.01022696,92439.0,92436.0,0.29837059]
[1740453337311,0.01322696,92439.0,92436.0,0.31147892]
[1740453337667,0.005,92439.0,92438.0,0.09348277]
[1740453338103,0.003,92439.0,92438.0,0.09348277]
[1740453338305,0.005,92439.0,92438.0,0.14058277]
[1740453338647,0.002,92439.0,92438.0,0.1865121]
[1740453338761,0.002,92439.0,92438.0,0.14058277]
[1740453338961,0.007,92439.0,92438.0,0.16058277]
[1740453339180,0.003,92439.0,92438.0,0.94856597]
[1740453339465,0.0016992,92479.0,92455.0,0.01428277]
[1740453339670,0.012281,92475.0,92455.0,0.01428277]
[1740453339875,0.0016992,92479.0,92455.0,0.01428277]
[1740453340077,0.032579,92478.0,92455.0,0.01428277]
[1740453340625,0.0016992,92479.0,92455.0,0.0144123]
[1740453340823,0.02763992,92478.0,92455.0,0.0144123]
[1740453342034,0.03463992,92478.0,92455.0,0.0154123]
[1740453342245,0.04163992,92478.0,92455.0,0.0164123]
[1740453342437,0.15,92461.0,92455.0,0.00112953]
[1740453342615,0.15,92461.0,92455.0,0.00012953]
[1740453342826,0.0250207,92460.0,92455.0,0.00212953]
[1740453343229,0.0250207,92460.0,92455.0,0.00012953]
[1740453343481,0.0250207,92460.0,92455.0,0.00112953]
[1740453343675,0.0250207,92460.0,92435.0,0.01428277]
[1740453343829,0.0250207,92460.0,92435.0,0.01452426]
[1740453344035,0.02763992,92459.0,92435.0,0.00024149]
[1740453345582,0.03463992,92459.0,92435.0,0.00024149]
[1740453346168,0.007,92459.0,92435.0,0.00024149]
[1740453346406,0.01126752,92458.0,92435.0,0.00024149]
[1740453347211,0.00833945,92438.0,92433.0,0.29635203]
[1740453347413,0.00833945,92438.0,92433.0,0.29642167]
[1740453348945,0.01033945,92438.0,92433.0,0.29642167]
[1740453350239,0.01333945,92438.0,92433.0,0.29642167]
[1740453350476,0.01333945,92438.0,92433.0,0.31070444]
[1740453352634,0.01133945,92438.0,92433.0,0.29642167]
[1740453353068,0.01333945,92438.0,92433.0,0.29727147]
[1740453353438,0.01133945,92438.0,92433.0,0.29727147]
[1740453353584,0.01333945,92438.0,92433.0,0.31155424]
[1740453353912,0.01133945,92438.0,92433.0,0.31155424]
[1740453354290,0.01033945,92438.0,92433.0,0.31155424]
[1740453354690,0.01433945,92438.0,92433.0,0.29727147]
[1740453355722,0.01233945,92438.0,92433.0,0.29727147]
[1740453355915,0.00833945,92438.0,92433.0,0.29727147]
[1740453356068,0.01433945,92438.0,92433.0,0.29727147]
[1740453356618,0.01033945,92438.0,92433.0,0.29727147]
[1740453356766,0.00833945,92438.0,92433.0,0.29727147]
[1740453356976,0.01233945,92438.0,92433.0,0.29727147]
[1740453357170,0.01233945,92438.0,92433.0,0.29618583]
[1740453357428,0.01233945,92438.0,92433.0,0.29085486]
[1740453357922,0.01433945,92438.0,92433.0,0.29085486]
[1740453359881,0.01433945,92438.0,92433.0,0.00091944]
[1740453360081,0.00622395,92437.0,92433.0,0.00091944]
[1740453360691,0.0762,92436.0,92433.0,0.00091944]
[1740453361601,0.01125939,92435.0,92433.0,0.00091944]
[1740453362836,0.01825939,92435.0,92433.0,0.00091944]
[1740453363048,0.01825939,92435.0,92434.0,0.01428277]
[1740453363296,0.01825939,92435.0,92434.0,0.01579715]
[1740453363473,0.02225939,92435.0,92434.0,0.01579715]
[1740453363817,0.007,92435.0,92434.0,0.45173257]
[1740453363953,0.04072146,92462.0,92435.0,0.0791]
[1740453363954,0.01127293,92448.0,92435.0,0.0791]
[1740453364318,0.01127293,92448.0,92437.0,0.0796]
[1740453364528,0.01127293,92448.0,92438.0,0.00151432]
[1740453364735,0.01127293,92448.0,92447.0,0.09388277]
[1740453364874,0.01127293,92448.0,92447.0,0.14069685]
[1740453365081,0.09684923,92450.0,92449.0,0.01028277]
[1740453365282,0.09684923,92450.0,92449.0,0.00579694]
[1740453365723,0.09684923,92450.0,92449.0,0.00228277]
[1740453366100,0.09684923,92450.0,92448.0,0.07788277]
[1740453366299,0.09684923,92450.0,92448.0,0.09371524]
[1740453366752,0.09684923,92450.0,92448.0,0.07939696]
[1740453366957,0.09684923,92450.0,92449.0,0.02]
[1740453367162,0.09684923,92450.0,92449.0,0.01891464]
[1740453367163,0.001,92450.0,92449.0,0.01891464]
[1740453367366,0.001,92450.0,92449.0,0.02042859]
[1740453367538,0.001,92450.0,92449.0,0.01891464]
[1740453367746,0.001,92450.0,92449.0,0.02042852]
[1740453367986,0.001,92450.0,92449.0,0.06702852]
[1740453368131,0.001,92450.0,92449.0,0.05971513]
[1740453368327,0.001,92450.0,92449.0,0.34965055]
[1740453368542,0.0016996,92459.0,92458.0,0.01160125]
[1740453368739,0.0016996,92459.0,92458.0,0.84353741]
[1740453368946,0.0016996,92459.0,92458.0,0.84202372]
[1740453369146,0.0016996,92459.0,92458.0,0.91862372]
[1740453369412,0.0016996,92459.0,92458.0,0.91762372]
[1740453369969,0.0016996,92459.0,92458.0,0.91962372]
[1740453370171,0.0016996,92459.0,92458.0,0.91862372]
[1740453370510,0.0016996,92459.0,92458.0,0.91662372]
[1740453371775,0.01126676,92487.0,92458.0,0.79032372]
[1740453371903,0.01126676,92487.0,92478.0,0.13810125]
[1740453372129,0.01126676,92487.0,92478.0,0.91882372]
[1740453372733,0.01126676,92487.0,92478.0,0.91682372]
[1740453373156,0.01126676,92487.0,92478.0,0.91889336]
[1740453373409,0.15,92517.0,92478.0,1.0118067]
[1740453373585,0.01127435,92497.0,92478.0,0.91789336]
[1740453373801,0.01127435,92497.0,92478.0,0.91989336]
[1740453373995,0.083498,92531.0,92478.0,0.91989336]
[1740453374219,0.17696656,92543.0,92503.0,0.00760125]
[1740453374402,0.01024,92554.0,92504.0,0.41994847]
[1740453374555,0.04239351,92547.0,92505.0,0.04377897]
[1740453374756,0.00983651,92547.0,92506.0,0.00151306]
[1740453375227,0.08642529,92538.0,92506.0,0.00151306]
[1740453375669,0.00815748,92521.0,92506.0,0.00151306]
[1740453375870,0.00815748,92521.0,92507.0,0.28993542]
[1740453376077,0.00815748,92521.0,92508.0,0.001513]
[1740453377051,0.0016996,92521.0,92508.0,0.001513]
[1740453377238,0.0046996,92521.0,92508.0,0.001513]
[1740453377434,0.0016996,92521.0,92508.0,0.001513]
[1740453378084,0.0066996,92521.0,92511.0,0.00760125]
[1740453378281,0.0066996,92521.0,92511.0,0.00911425]
[1740453378661,0.0016996,92521.0,92511.0,0.00911425]
[1740453378865,0.0086996,92521.0,92520.0,0.09030125]
[1740453379141,0.0086996,92521.0,92520.0,0.13890125]
[1740453379344,0.0016996,92521.0,92520.0,0.13890125]
[1740453379546,0.0036996,92521.0,92520.0,0.13890125]
[1740453379768,0.0036996,92521.0,92520.0,0.14041395]
[1740453379935,0.0016996,92521.0,92520.0,0.14041395]
[1740453380168,0.0056996,92521.0,92520.0,0.14041395]
[1740453380300,0.0056996,92521.0,92520.0,0.15547935]
[1740453380702,0.0056996,92521.0,92520.0,0.14341395]
[1740453380903,0.0056996,92521.0,92520.0,0.92413642]
[1740453381200,0.0056996,92521.0,92520.0,0.92262372]
[1740453381406,0.0026996,92521.0,92520.0,0.92262372]
[1740453381643,0.0026996,92521.0,92520.0,0.92462372]
[1740453382048,0.0026996,92521.0,92520.0,1.01811009]
[1740453382271,0.0026996,92521.0,92520.0,0.92262372]
[1740453382460,0.0016996,92521.0,92520.0,0.92262372]
[1740453382804,0.0016996,92521.0,92520.0,0.92662372]
[1740453383431,0.0016996,92521.0,92520.0,0.92262372]
[1740453383974,0.0016996,92521.0,92520.0,0.99355112]
[1740453384960,0.0016996,92521.0,92520.0,0.98655112]
[1740453385384,0.0026996,92521.0,92520.0,0.99455112]
[1740453385537,0.0016996,92521.0,92520.0,0.98855112]
[1740453385733,0.0016996,92521.0,92520.0,0.98655112]
[1740453385940,0.0036996,92521.0,92520.0,0.99955112]
[1740453386157,0.0026996,92521.0,92520.0,0.99355112]
[1740453386771,0.0036996,92521.0,92520.0,1.00055112]
[1740453387568,0.0036996,92521.0,92520.0,0.93362372]
[1740453392628,0.0026996,92521.0,92520.0,0.92662372]
[1740453392841,0.0026996,92521.0,92520.0,0.93686372]
[1740453393288,0.0026996,92521.0,92520.0,0.94386372]
[1740453393459,0.0026996,92521.0,92520.0,1.03825009]
[1740453395154,0.0026996,92521.0,92520.0,0.94386372]
[1740453396052,0.0026996,92521.0,92520.0,0.94382372]
[1740453400407,0.0026996,92521.0,92520.0,0.94467252]
[1740453403945,0.0026996,92521.0,92520.0,0.93447252]
[1740453406047,0.0026996,92521.0,92520.0,0.94467252]
[1740453406272,0.0026996,92521.0,92520.0,1.03913977]
[1740453406478,0.01397162,92521.0,92520.0,1.03913977]
[1740453408182,0.01397162,92521.0,92520.0,0.94467252]
[1740453408583,0.01297162,92521.0,92520.0,0.93067252]
[1740453408871,0.01397162,92521.0,92520.0,0.93007127]
[1740453409076,0.01497162,92521.0,92520.0,0.93707127]
[1740453409285,0.01397162,92521.0,92520.0,0.93007127]
[1740453409693,0.01397162,92521.0,92520.0,1.03067965]
[1740453409910,0.01297162,92521.0,92520.0,1.02367965]
[1740453410048,0.01397162,92521.0,92520.0,1.03067965]
[1740453410668,0.01497162,92521.0,92520.0,1.03767965]
[1740453410875,0.01497162,92521.0,92520.0,0.93707127]
[1740453411131,0.01497162,92521.0,92520.0,0.93007127]
[1740453411269,0.01397162,92521.0,92520.0,0.93007127]
[1740453411512,0.01497162,92521.0,92520.0,0.93707127]
[1740453411916,0.01497162,92521.0,92520.0,0.94467252]
[1740453412527,0.01497162,92521.0,92520.0,1.03913977]
[1740453415207,0.0036996,92521.0,92520.0,1.03913977]
[1740453415440,0.0036996,92521.0,92520.0,1.03153852]
[1740453415894,0.0036996,92521.0,92520.0,0.92687127]
[1740453416111,0.0036996,92521.0,92520.0,0.93447252]
[1740453420098,0.0036996,92521.0,92520.0,0.92687127]
[1740453420655,0.0036996,92521.0,92520.0,0.93447252]
[1740453422853,0.0026996,92521.0,92520.0,0.43668547]
[1740453422971,0.0026996,92521.0,92520.0,0.53745272]
[1740453423176,0.0036996,92521.0,92520.0,0.53745272]
[1740453424775,0.0036996,92521.0,92520.0,0.44368547]
[1740453425315,0.0026996,92521.0,92520.0,0.43668547]
[1740453426773,0.0026996,92521.0,92520.0,0.44368547]
[1740453426974,0.0016996,92521.0,92520.0,0.42968547]
[1740453427452,0.0016996,92521.0,92520.0,0.44368547]
[1740453427653,0.0016996,92521.0,92520.0,0.43668547]
[1740453427806,0.0016996,92521.0,92520.0,0.44368547]
[1740453428022,0.0016996,92521.0,92520.0,0.53745272]
[1740453428222,0.0016996,92521.0,92520.0,0.43608422]
[1740453428630,0.0016996,92521.0,92520.0,0.93447252]
[1740453429033,0.0016996,92521.0,92520.0,0.92687127]
[1740453429611,0.0016996,92521.0,92520.0,0.87127127]
[1740453429812,0.0016996,92521.0,92520.0,0.87827127]
[1740453430029,0.0016996,92521.0,92520.0,0.79557127]
[1740453430523,0.0016996,92521.0,92506.0,0.00091844]
[1740453430728,0.08642529,92519.0,92506.0,0.00091844]
[1740453431298,0.00964485,92518.0,92506.0,0.00091844]
[1740453431515,0.08642529,92509.0,92506.0,0.00091844]
[1740453431921,0.08642529,92509.0,92499.0,0.0954014]
[1740453432122,0.08655456,92509.0,92499.0,0.0954014]
[1740453432293,0.08655456,92509.0,92503.0,0.00760125]
[1740453432662,0.08655456,92509.0,92506.0,0.00760125]
[1740453432873,0.00012927,92509.0,92500.0,0.00151332]
[1740453433082,0.00012927,92509.0,92501.0,0.00969147]
[1740453433283,0.00012927,92509.0,92502.0,0.00151324]
[1740453434092,0.00012927,92509.0,92478.0,0.00151318]
[1740453434225,0.00012927,92509.0,92506.0,0.001]
[1740453435637,0.0852418,92519.0,92480.0,0.00151318]
[1740453435764,0.15,92518.0,92481.0,0.08652357]
[1740453435963,0.001,92509.0,92505.0,0.0008488]
[1740453436385,0.01125609,92508.0,92506.0,0.00151315]
[1740453437022,0.01125609,92508.0,92497.0,0.07658632]
[1740453437233,0.01125609,92508.0,92498.0,0.00151318]
[1740453437442,0.01125609,92508.0,92498.0,0.01383181]
[1740453437600,0.01125609,92508.0,92498.0,0.00151318]
[1740453439067,0.01125609,92508.0,92498.0,0.00351318]
[1740453439710,0.01125609,92508.0,92498.0,0.004]
[1740453440558,0.08642529,92507.0,92498.0,0.004]
[1740453440765,0.08642529,92507.0,92498.0,0.002]
[1740453441172,0.15,92506.0,92498.0,0.003]
[1740453441415,0.15,92506.0,92498.0,0.002]
[1740453441614,0.00796956,92499.0,92498.0,0.003]
[1740453441790,0.00796956,92499.0,92498.0,0.001]
[1740453442419,0.02493472,92499.0,92486.0,0.00151321]
[1740453442747,0.02493472,92499.0,92498.0,0.006]
[1740453443356,0.02493472,92499.0,92498.0,0.003]
[1740453445229,0.02493472,92499.0,92498.0,0.006]
[1740453445600,0.04242819,92499.0,92479.0,0.28993542]
[1740453445806,0.02546303,92499.0,92479.0,0.28993542]
[1740453446013,0.08642529,92497.0,92479.0,0.28993542]
[1740453446340,0.08642529,92497.0,92473.0,0.0102]
[1740453446485,0.08642529,92493.0,92473.0,0.0102]
[1740453446691,0.08642529,92493.0,92463.0,0.28993542]
[1740453446692,0.00799307,92480.0,92463.0,0.28993542]
[1740453447122,0.00799307,92480.0,92479.0,0.003]
[1740453447915,0.00809096,92480.0,92479.0,0.006]
[1740453448121,0.00809096,92480.0,92464.0,0.00151375]
[1740453448558,0.00909096,92480.0,92464.0,0.00151375]
[1740453449087,0.00809096,92480.0,92464.0,0.00151375]
[1740453449409,0.00909096,92480.0,92464.0,0.00151375]
[1740453451282,0.01009096,92480.0,92464.0,0.00151375]
[1740453451668,0.01123826,92479.0,92464.0,0.00151375]
[1740453452291,0.01123826,92479.0,92464.0,0.03167867]
[1740453452491,0.01123826,92479.0,92464.0,0.00151375]
[1740453452671,0.01123826,92479.0,92453.0,0.01171375]
[1740453453047,0.01223826,92479.0,92453.0,0.30164917]
[1740453453249,0.01223826,92479.0,92453.0,0.30013542]
[1740453453454,0.01223826,92479.0,92454.0,0.01171375]
[1740453453673,0.01123826,92479.0,92455.0,0.04280492]
[1740453454017,0.01223826,92479.0,92456.0,0.00151376]
[1740453455217,0.01123826,92479.0,92456.0,0.00151376]
[1740453455574,0.01223826,92479.0,92456.0,0.00151376]
[1740453455983,0.01123826,92479.0,92456.0,0.00151376]
[1740453456187,0.01223826,92479.0,92456.0,0.00151376]
[1740453456382,0.001,92479.0,92456.0,0.00151376]
[1740453456806,0.0169699,92474.0,92456.0,0.00151376]
[1740453457138,0.0169699,92474.0,92457.0,0.03791492]
[1740453457329,0.0169699,92474.0,92458.0,0.00151377]
[1740453459305,0.0169699,92474.0,92459.0,0.00151377]
[1740453460133,0.0179699,92474.0,92459.0,0.00151377]
[1740453460759,0.0179699,92474.0,92460.0,0.00151376]
[1740453461063,0.0179699,92474.0,92460.0,0.03167868]
[1740453461417,0.05206219,92474.0,92460.0,0.03167868]
[1740453461621,0.05206219,92474.0,92460.0,0.00151376]
[1740453461788,0.05306219,92474.0,92460.0,0.00151376]
[1740453462201,0.05206219,92474.0,92460.0,0.00151376]
[1740453462441,0.05306219,92474.0,92460.0,0.00151376]
[1740453463101,0.05306219,92474.0,92460.0,0.03176358]
[1740453466169,0.05206219,92474.0,92460.0,0.03176358]
[1740453466368,0.05306219,92474.0,92460.0,0.03176358]
[1740453466531,0.0112243,92473.0,92460.0,0.03176358]
[1740453467738,0.0112243,92473.0,92460.0,0.00151376]
[1740453468142,0.0112243,92473.0,92461.0,0.0808]
[1740453468415,0.0112243,92473.0,92463.0,0.0464]
[1740453468563,0.0112243,92473.0,92464.0,0.0015137]
[1740453468766,0.0122243,92473.0,92465.0,0.28993542]
[1740453468971,0.0122243,92473.0,92466.0,0.16517725]
[1740453469292,0.0122243,92473.0,92467.0,0.0808]
[1740453469430,0.0122243,92473.0,92468.0,0.00151353]
[1740453469629,0.0112243,92473.0,92468.0,0.00151353]
[1740453469834,0.0112243,92473.0,92467.0,0.0808]
[1740453470080,0.0112243,92473.0,92469.0,0.00151355]
[1740453471743,0.0112243,92473.0,92469.0,0.00451355]
[1740453473244,0.0112243,92473.0,92470.0,0.28993542]
[1740453473431,0.0112243,92473.0,92471.0,0.00151355]
[1740453473854,0.02819136,92473.0,92471.0,0.00151355]
[1740453475052,0.02819136,92473.0,92471.0,0.003]
[1740453475247,0.02819136,92473.0,92471.0,0.006]
[1740453476465,0.02819136,92473.0,92471.0,0.29593542]
[1740453476629,0.02819136,92473.0,92471.0,0.006]
[1740453477029,0.02819136,92473.0,92471.0,0.003]
[1740453477389,0.02819136,92473.0,92471.0,0.002]
[1740453477590,0.02819136,92473.0,92471.0,0.005]
[1740453477767,0.02819136,92473.0,92465.0,0.00151379]
[1740453477974,0.02819136,92473.0,92471.0,0.002]
[1740453478586,0.02819136,92473.0,92465.0,0.00151379]
[1740453478783,0.02819136,92473.0,92471.0,0.002]
[1740453479114,0.02819136,92473.0,92471.0,0.005]
[1740453480005,0.02819136,92473.0,92471.0,0.003]
[1740453480177,0.02819136,92473.0,92465.0,0.00151379]
[1740453480398,0.02819136,92473.0,92465.0,0.00351379]
[1740453480579,0.02819136,92473.0,92471.0,0.002]
[1740453480803,0.0112243,92473.0,92471.0,0.002]
[1740453481180,0.0112243,92473.0,92454.0,0.32084721]
[1740453481379,0.0112243,92473.0,92455.0,0.00075751]
[1740453481579,0.0112243,92473.0,92451.0,0.0102]
[1740453481842,0.0112243,92473.0,92471.0,0.001]
[1740453483538,0.0112243,92473.0,92448.0,0.00075777]
[1740453483735,0.0112243,92473.0,92455.0,0.001]
[1740453483941,0.0112243,92473.0,92456.0,0.00075776]
[1740453484138,0.01697041,92467.0,92456.0,0.00075776]
[1740453485116,0.01697041,92467.0,92456.0,0.00175776]
[1740453486540,0.01697041,92467.0,92456.0,0.00075776]
[1740453486778,0.01697041,92467.0,92457.0,0.00075779]
[1740453488169,0.01697041,92467.0,92458.0,0.0007578]
[1740453488385,0.00824362,92459.0,92458.0,0.0007578]
[1740453489103,0.01946756,92459.0,92458.0,0.0007578]
[1740453489337,0.01946756,92459.0,92458.0,0.0027578]
[1740453489546,0.01946756,92459.0,92458.0,0.0007578]
[1740453489751,0.01946756,92459.0,92458.0,0.003]
[1740453490168,0.01946756,92459.0,92454.0,0.00075785]
[1740453490545,0.02046756,92459.0,92458.0,0.003]
[1740453490999,0.02146756,92459.0,92458.0,0.005]
[1740453491169,0.01946756,92459.0,92453.0,0.00075782]
[1740453491371,0.01946756,92459.0,92451.0,0.0008492]
[1740453491576,0.02146756,92459.0,92454.0,0.005]
[1740453491744,0.02146756,92459.0,92454.0,0.003]
[1740453492306,0.02146756,92459.0,92458.0,0.002]
[1740453492445,0.10689285,92459.0,92451.0,0.0008492]
[1740453492877,0.10689285,92459.0,92451.0,0.0001508]
[1740453493094,0.00189281,92458.0,92451.0,0.0001508]
[1740453493303,0.0497,92456.0,92451.0,0.0001508]
[1740453493666,0.0497,92456.0,92453.0,0.003]
[1740453494399,0.0497,92456.0,92451.0,0.0001508]
[1740453494596,0.06667478,92456.0,92451.0,0.0001508]
[1740453494829,0.06767478,92456.0,92451.0,0.0001508]
[1740453495233,0.06667478,92456.0,92451.0,0.0001508]
[1740453495635,0.06767478,92456.0,92451.0,0.0001508]
[1740453496924,0.06967478,92456.0,92451.0,0.0001508]
[1740453498217,0.06767478,92456.0,92451.0,0.0001508]
[1740453498432,0.06667478,92456.0,92451.0,0.0001508]
[1740453498631,0.07167478,92456.0,92451.0,0.0001508]
[1740453499043,0.0547,92456.0,92451.0,0.0001508]
[1740453499200,0.0587,92456.0,92451.0,0.0001508]
[1740453499609,0.009,92456.0,92451.0,0.0001508]
[1740453500505,0.004,92456.0,92451.0,0.0001508]
[1740453500861,0.005,92456.0,92451.0,0.00090915]
[1740453500997,0.005,92456.0,92451.0,0.0001508]
[1740453501200,0.004,92456.0,92451.0,0.0001508]
[1740453501853,0.007,92456.0,92451.0,0.0001508]
[1740453502267,0.01697413,92455.0,92451.0,0.0001508]
[1740453502467,0.16697413,92455.0,92451.0,0.0001508]
[1740453502846,0.0499,92454.0,92433.0,0.0008498]
[1740453503353,0.0499,92454.0,92434.0,0.00075878]
[1740453504659,0.0539,92454.0,92434.0,0.00075878]
[1740453505792,0.0499,92454.0,92434.0,0.00075878]
[1740453506204,0.0539,92454.0,92434.0,0.00075878]
[1740453507704,0.01697557,92450.0,92434.0,0.00075878]
[1740453507909,0.0569,92454.0,92434.0,0.00075878]
[1740453508356,0.01121963,92453.0,92434.0,0.00075878]
[1740453508748,0.00796977,92435.0,92434.0,0.00075878]
[1740453508946,0.00796977,92435.0,92434.0,0.00088805]
[1740453509373,0.00796977,92435.0,92434.0,0.00173735]
[1740453510184,0.00796977,92435.0,92434.0,0.00173756]
[1740453510652,0.00796977,92435.0,92434.0,0.00273756]
[1740453511772,0.15,92462.0,92434.0,0.00197857]
[1740453512016,0.165,92462.0,92434.0,0.00349289]
[1740453512178,0.0112271,92441.0,92434.0,0.00349289]
[1740453512378,0.00113409,92461.0,92434.0,0.00349289]
[1740453512584,0.01122713,92461.0,92434.0,0.00249289]
[1740453513157,0.01122713,92461.0,92434.0,0.00349289]
[1740453513396,0.01122713,92461.0,92435.0,0.0772]
[1740453513591,0.01122713,92461.0,92436.0,0.00966858]
[1740453514576,0.00801701,92437.0,92436.0,0.00966858]
[1740453514808,0.00801701,92437.0,92436.0,0.05546858]
[1740453514939,0.0249923,92437.0,92436.0,0.04731431]
[1740453516085,0.0249923,92437.0,92436.0,0.04831431]
[1740453518275,0.00113409,92467.0,92436.0,0.12611431]
[1740453518481,0.024992,92463.0,92436.0,0.12511431]
[1740453518678,0.00113409,92462.0,92436.0,0.12611431]
[1740453519022,0.024992,92463.0,92437.0,0.01279427]
[1740453519200,0.024992,92463.0,92438.0,0.00151432]
[1740453519613,0.007,92467.0,92440.0,0.046]
[1740453519817,0.007,92463.0,92442.0,0.0797]
[1740453520015,0.007,92463.0,92443.0,0.0622355]
[1740453520218,0.014,92463.0,92444.0,0.0797]
[1740453520516,0.014,92463.0,92446.0,0.0797]
[1740453520765,0.014,92463.0,92447.0,0.00151409]
[1740453520914,0.014,92463.0,92449.0,0.0773]
[1740453521251,0.007,92463.0,92451.0,0.0773]
[1740453521602,0.007,92463.0,92454.0,0.0773]
[1740453521799,0.007,92463.0,92456.0,0.0773]
[1740453521999,0.007,92463.0,92458.0,0.0773]
[1740453522228,0.006,92463.0,92459.0,0.05111388]
[1740453522474,0.007,92463.0,92460.0,0.0773]
[1740453522620,0.007,92463.0,92461.0,0.00151387]
[1740453522823,0.013,92463.0,92462.0,0.0773]
[1740453522994,0.01401097,92463.0,92462.0,0.0773]
[1740453523612,0.01401097,92463.0,92462.0,0.12731385]
[1740453523814,0.01801097,92463.0,92462.0,0.12731385]
[1740453524037,0.01801097,92463.0,92462.0,0.14017451]
[1740453524664,0.01201097,92463.0,92462.0,0.12744312]
[1740453524865,0.004,92463.0,92462.0,0.12744312]
[1740453525061,0.0016982,92471.0,92462.0,0.05014312]
[1740453525399,0.0016982,92471.0,92463.0,0.08341372]
[1740453525660,0.01697134,92469.0,92463.0,0.08341372]
[1740453525912,0.01697134,92469.0,92464.0,0.0132043]
[1740453526102,0.01697134,92469.0,92465.0,0.00151375]
[1740453526824,0.01897134,92469.0,92465.0,0.00151375]
[1740453527043,0.01897134,92469.0,92464.0,0.00151376]
[1740453528111,0.00807286,92468.0,92464.0,0.00151376]
[1740453528535,0.00807286,92468.0,92465.0,0.0827]
[1740453528825,0.00807286,92468.0,92465.0,0.12497784]
[1740453529007,0.00807286,92468.0,92466.0,0.0015138]
[1740453529209,0.00807286,92468.0,92465.0,0.0939254]